bitfinex/quotes_SOLUSD_20240607
["timestamp","ask_amount","ask_price","bid_price","bid_amount"]
[1717726968887,49.5301,169.72,169.7,6.66]
[1717726969069,45.0,169.71,169.7,6.66]
[1717726969984,47.1802,169.71,169.7,6.66]
[1717726970485,47.1802,169.71,169.67,2.1807]
[1717726970679,47.1802,169.71,169.7,6.66]
[1717726971687,47.1802,169.71,169.67,2.1807]
[1717726971858,47.1802,169.71,169.7,6.66]
[1717726972578,2.1803,169.7,169.66,2.9719326]
[1717726972762,45.0,169.71,169.69,6.66]
[1717726972763,47.1802,169.71,169.69,6.66]
[1717726972960,47.1802,169.71,169.7,6.66]
[1717726973271,2.1803,169.7,169.66,2.9719326]
[1717726973659,2.1803,169.7,169.69,6.66]
[1717726973860,47.1802,169.71,169.69,6.66]
[1717726974394,47.1802,169.71,169.7,6.66]
[1717726974970,47.1802,169.71,169.67,2.1806]
[1717726975172,2.1802,169.71,169.7,6.66]
[1717726975498,45.0,169.72,169.7,6.66]
[1717726976186,2.1801,169.71,169.7,6.66]
[1717726979287,47.1801,169.72,169.7,6.66]
[1717726979491,47.1801,169.72,169.71,6.66]
[1717726987273,4.3589,169.77,169.71,6.66]
[1717726987479,2.1796,169.76,169.68,26.64]
[1717726987803,2.1796,169.76,169.75,6.66]
[1717726988174,2.1793,169.78,169.75,6.66]
[1717726988377,2.1792,169.79,169.77,6.66]
[1717726988581,2.1792,169.79,169.78,6.66]
[1717726991418,2.179,169.81,169.78,6.66]
[1717726991595,2.179,169.81,169.72,6.4287]
[1717726991596,2.179,169.81,169.8,6.66]
[1717726991790,6.5349,169.86,169.8,6.66]
[1717726991994,2.1788,169.82,169.77,2.1793]
[1717726992189,2.1787,169.83,169.81,6.66]
[1717726992391,2.1786,169.83,169.82,6.66]
[1717726992593,2.1788,169.82,169.77,2.1793]
[1717726992899,2.1788,169.82,169.81,6.66]
[1717726994703,2.1787,169.83,169.81,6.66]
[1717726994906,2.1787,169.83,169.82,6.66]
[1717726995109,2.1785,169.84,169.82,6.66]
[1717726995297,2.1785,169.84,169.83,6.66]
[1717726997622,2.1786,169.83,169.78,2.1792]
[1717726997832,2.1786,169.83,169.82,6.66]
[1717726999513,2.1786,169.83,169.79,2.1791]
[1717726999824,2.1786,169.83,169.82,6.66]
[1717727000332,2.1786,169.83,169.78,8.194]
[1717727000492,2.1786,169.83,169.82,6.66]
[1717727003118,2.1785,169.84,169.82,6.66]
[1717727003617,2.1785,169.84,169.83,6.66]
[1717727005402,2.1785,169.84,169.79,2.179]
[1717727005603,2.1785,169.84,169.83,6.66]
[1717727007726,2.1786,169.83,169.79,2.179]
[1717727007930,2.1786,169.83,169.82,6.66]
[1717727009128,2.1785,169.84,169.82,6.66]
[1717727010124,2.1786,169.83,169.79,2.179]
[1717727010332,2.1786,169.83,169.82,6.66]
[1717727013516,2.1786,169.84,169.82,6.66]
[1717727015450,49.3568,169.85,169.83,6.66]
[1717727015451,47.1784,169.85,169.83,6.66]
[1717727015651,2.1785,169.84,169.8,2.179]
[1717727015847,2.1785,169.84,169.83,6.66]
[1717727016830,2.1784,169.85,169.83,6.66]
[1717727017029,2.1784,169.85,169.81,2.1788]
[1717727017030,2.1784,169.85,169.84,6.66]
[1717727017444,15.2486,169.85,169.78,2.1792]
[1717727017748,2.1786,169.84,169.79,2.1791]
[1717727017946,2.1786,169.84,169.83,6.66]
[1717727018826,2.1784,169.85,169.83,6.66]
[1717727019132,2.1784,169.85,169.84,6.66]
[1717727020629,2.1784,169.85,169.8,2.1789]
[1717727020828,2.1784,169.85,169.84,6.66]
[1717727021637,45.0,169.86,169.84,6.66]
[1717727021950,47.1782,169.86,169.85,6.66]
[1717727023126,45.0,169.86,169.73,20.0]
[1717727023354,2.1787,169.83,169.82,6.66]
[1717727023555,2.1787,169.83,169.76,26.64]
[1717727023741,47.1785,169.84,169.82,6.66]
[1717727025750,2.1785,169.84,169.83,6.66]
[1717727027249,2.1785,169.84,169.8,2.179]
[1717727027545,2.1785,169.84,169.83,6.66]
[1717727031964,4.3561,169.88,169.83,6.66]
[1717727032163,2.1782,169.87,169.86,6.66]
[1717727034472,47.1782,169.87,169.86,6.66]
[1717727037166,2.1782,169.86,169.82,2.1786]
[1717727037369,47.1782,169.86,169.85,6.66]
[1717727037969,45.0,169.86,169.85,6.66]
[1717727039873,47.1782,169.86,169.82,2.1787]
[1717727040069,45.0,169.85,169.81,2.1788]
[1717727040264,2.1782,169.86,169.84,6.66]
[1717727040458,2.1782,169.86,169.85,6.66]
[1717727041073,47.1782,169.87,169.85,6.66]
[1717727042170,2.1782,169.86,169.85,6.66]
[1717727042770,2.1782,169.86,169.82,2.1787]
[1717727042970,2.1782,169.86,169.85,6.66]
[1717727043281,47.1782,169.87,169.85,6.66]
[1717727045291,47.1782,169.87,169.86,6.66]
[1717727047975,6.66,169.92,169.86,6.66]
[1717727048286,2.1778,169.89,169.84,26.64]
[1717727048585,2.1778,169.89,169.85,2.1783]
[1717727048776,2.178,169.88,169.84,28.8185]
[1717727049485,47.1779,169.89,169.84,28.8185]
[1717727051495,47.1779,169.89,169.84,26.64]
[1717727051791,47.1777,169.9,169.84,26.64]
[1717727051967,2.1777,169.9,169.84,26.64]
[1717727053567,2.1775,169.92,169.89,6.66]
[1717727053771,2.1775,169.92,169.91,6.66]
[1717727054180,2.1776,169.91,169.82,6.3854]
[1717727054368,6.5332,169.9,169.82,6.3854]
[1717727054574,2.178,169.88,169.87,6.66]
[1717727055275,2.1781,169.87,169.82,6.3854]
[1717727055477,2.1781,169.87,169.86,6.66]
[1717727055880,2.178,169.88,169.86,6.66]
[1717727056276,2.178,169.88,169.87,6.66]
[1717727056496,47.1779,169.89,169.87,6.66]
[1717727056690,2.1779,169.89,169.87,6.66]
[1717727058177,2.178,169.88,169.87,6.66]
[1717727058378,45.0,169.9,169.87,6.66]
[1717727058598,2.1778,169.89,169.84,6.66]
[1717727059306,45.0,169.9,169.88,6.66]
[1717727059481,45.0,169.91,169.88,6.66]
[1717727059679,2.1778,169.89,169.88,6.66]
[1717727062313,2.178,169.88,169.87,6.66]
[1717727063881,2.178,169.88,169.78,6.251]
[1717727064085,2.178,169.88,169.87,6.66]
[1717727066100,45.0,169.89,169.78,6.251]
[1717727066308,2.1784,169.85,169.78,6.251]
[1717727066491,45.0,169.86,169.78,6.251]
[1717727066692,2.1784,169.85,169.82,6.66]
[1717727067215,2.1785,169.84,169.82,6.66]
[1717727067591,2.1784,169.85,169.82,6.66]
[1717727068005,2.1784,169.85,169.83,6.66]
[1717727071718,2.1784,169.85,169.82,6.66]
[1717727073626,2.1785,169.84,169.82,6.66]
[1717727074526,45.0,169.86,169.82,6.66]
[1717727074822,2.1784,169.85,169.82,6.66]
[1717727080930,2.1785,169.84,169.82,6.66]
[1717727081428,2.1785,169.84,169.8,2.1789]
[1717727081615,2.1785,169.84,169.82,6.66]
[1717727082618,2.1784,169.85,169.82,6.66]
[1717727086037,45.0,169.86,169.83,6.66]
[1717727086336,45.0,169.86,169.84,6.66]
[1717727086641,45.0,169.85,169.83,6.66]
[1717727086944,47.1783,169.85,169.83,6.66]
[1717727087315,45.0,169.85,169.83,6.66]
[1717727088618,47.1784,169.85,169.81,2.1788]
[1717727088933,2.1784,169.85,169.81,8.8388]
[1717727089125,2.1785,169.84,169.81,6.66]
[1717727089848,2.1784,169.85,169.81,2.1788]
[1717727090150,2.1784,169.85,169.81,8.8388]
[1717727091444,47.1782,169.86,169.82,2.1786]
[1717727091619,47.1784,169.85,169.81,2.1788]
[1717727091827,2.1785,169.84,169.81,6.66]
[1717727093648,2.1785,169.84,169.8,2.1789]
[1717727093826,2.1785,169.84,169.81,6.66]
[1717727094028,47.1784,169.85,169.81,8.8389]
[1717727095947,2.1785,169.84,169.8,2.1789]
[1717727096149,2.1785,169.84,169.81,6.66]
[1717727099254,2.1785,169.84,169.76,26.64]
[1717727099449,2.1785,169.84,169.81,6.66]
[1717727101855,47.1784,169.85,169.81,6.66]
[1717727102157,47.1784,169.85,169.81,8.8389]
[1717727102662,2.1784,169.85,169.81,8.8389]
[1717727103833,2.1785,169.84,169.81,6.66]
[1717727105166,2.1784,169.85,169.81,8.8388]
[1717727105664,2.1784,169.85,169.82,6.66]
[1717727106262,47.1783,169.86,169.83,6.66]
[1717727106465,2.1784,169.85,169.83,6.66]
[1717727107569,2.1783,169.86,169.83,6.66]
[1717727107770,2.1783,169.86,169.82,6.66]
[1717727107950,47.1783,169.86,169.82,6.66]
[1717727109571,2.1783,169.85,169.82,6.66]
[1717727109865,47.1783,169.85,169.82,6.66]
[1717727110249,2.1783,169.85,169.82,6.66]
[1717727111667,2.1785,169.84,169.8,2.1789]
[1717727111868,2.1785,169.84,169.82,6.66]
[1717727112460,2.1785,169.84,169.81,6.66]
[1717727113666,2.1785,169.84,169.8,2.1789]
[1717727113974,2.1785,169.84,169.81,6.66]
[1717727115273,2.1785,169.84,169.8,2.1789]
[1717727115450,2.1784,169.85,169.82,6.66]
[1717727115647,2.3484,169.85,169.82,6.66]
[1717727115875,2.1785,169.84,169.81,6.66]
[1717727116071,2.1785,169.84,169.8,2.179]
[1717727116577,2.1785,169.84,169.82,6.66]
[1717727123682,2.1786,169.83,169.82,6.66]
[1717727124262,2.1786,169.83,169.79,2.1791]
[1717727124658,2.1786,169.83,169.81,6.66]
[1717727126081,2.1786,169.84,169.81,6.66]
[1717727126286,2.1786,169.84,169.82,6.66]
[1717727127888,8.7116,169.89,169.83,6.66]
[1717727128178,2.178,169.88,169.87,6.66]
[1717727129884,2.178,169.88,169.86,6.66]
[1717727130388,2.1781,169.87,169.86,6.66]
[1717727130581,47.1781,169.87,169.86,6.66]
[1717727131793,45.0,169.87,169.85,6.66]
[1717727131996,2.1782,169.87,169.85,6.66]
[1717727132470,2.1782,169.87,169.84,6.66]
[1717727133668,2.1782,169.86,169.82,2.1787]
[1717727133873,2.1782,169.86,169.84,6.66]
[1717727136586,2.1782,169.87,169.84,6.66]
[1717727139897,2.1782,169.87,169.85,6.66]
[1717727141975,2.1782,169.87,169.84,6.66]
[1717727143806,2.1782,169.86,169.84,6.66]
[1717727144612,2.1782,169.87,169.84,6.66]
[1717727150718,2.1782,169.86,169.84,6.66]
[1717727150925,2.1782,169.86,169.83,8.8386]
[1717727151717,2.1782,169.86,169.83,6.66]
[1717727155419,2.1782,169.87,169.83,8.8386]
[1717727155633,2.1782,169.87,169.84,6.66]
[1717727157000,2.178,169.88,169.86,6.66]
[1717727158308,47.178,169.88,169.86,6.66]
[1717727159602,47.178,169.88,169.78,6.2011]
[1717727159603,55.8904,169.88,169.78,6.2011]
[1717727159927,2.1783,169.86,169.84,6.66]
[1717727160822,47.1782,169.87,169.84,6.66]
[1717727161626,47.1782,169.87,169.85,6.66]
[1717727161825,2.1782,169.87,169.85,6.66]
[1717727166931,2.1782,169.86,169.85,6.66]
[1717727167140,2.1782,169.86,169.82,2.1787]
[1717727167314,2.1782,169.86,169.84,6.66]
[1717727167632,2.1782,169.86,169.83,6.66]
[1717727169411,2.1782,169.86,169.84,6.66]
[1717727171531,2.1782,169.87,169.84,6.66]
[1717727172239,2.1782,169.86,169.84,6.66]
[1717727172536,2.1785,169.84,169.8,2.1789]
[1717727172736,2.1785,169.84,169.81,6.66]
[1717727174652,2.1785,169.84,169.82,6.66]
[1717727177937,47.1784,169.85,169.83,6.66]
[1717727178833,2.1785,169.84,169.83,6.66]
[1717727179229,2.1786,169.83,169.79,2.179]
[1717727179466,2.1786,169.83,169.81,6.66]
[1717727181237,2.1786,169.83,169.79,2.179]
[1717727181437,2.1786,169.83,169.81,6.66]
[1717727181662,2.1787,169.82,169.79,2.179]
[1717727182043,2.1787,169.82,169.79,8.839]
[1717727184742,2.1787,169.82,169.8,6.66]
[1717727184940,2.1787,169.83,169.8,6.66]
[1717727185842,2.1787,169.83,169.79,2.179]
[1717727186237,2.1787,169.83,169.8,6.66]
[1717727187250,2.1787,169.82,169.8,6.66]
[1717727189663,47.1787,169.83,169.8,6.66]
[1717727190570,47.1787,169.83,169.79,2.1791]
[1717727191062,2.1787,169.82,169.79,2.1791]
[1717727191765,47.1787,169.83,169.79,2.1791]
[1717727193163,2.1787,169.82,169.79,2.1791]
[1717727194759,47.1787,169.83,169.79,2.1791]
[1717727194951,2.1788,169.82,169.78,2.1792]
[1717727195353,2.1788,169.82,169.79,2.1791]
[1717727199463,2.1788,169.82,169.79,8.8391]
[1717727199741,47.1787,169.83,169.79,8.8391]
[1717727200468,53.2104,169.83,169.79,8.8391]
[1717727202075,53.2104,169.83,169.8,8.839]
[1717727202456,53.2104,169.83,169.8,6.66]
[1717727202650,53.2104,169.83,169.81,6.66]
[1717727204165,2.1787,169.82,169.81,6.66]
[1717727209382,2.1787,169.82,169.79,2.1791]
[1717727211766,53.2104,169.83,169.79,2.1791]
[1717727211960,2.1788,169.82,169.78,2.1792]
[1717727212161,2.1788,169.82,169.76,26.64]
[1717727212966,2.1788,169.82,169.79,2.1791]
[1717727213685,2.1788,169.82,169.78,2.1792]
[1717727215579,2.1788,169.82,169.79,2.1791]
[1717727216378,2.1788,169.82,169.8,6.66]
[1717727218766,2.1788,169.82,169.79,8.8391]
[1717727220198,2.1788,169.82,169.79,2.1791]
[1717727220395,2.179,169.8,169.7,6.4092]
[1717727220696,2.1792,169.79,169.75,2.1796]
[1717727221066,24.6734,169.8,169.76,8.8395]
[1717727221392,47.1791,169.79,169.76,2.1795]
[1717727221682,45.0,169.79,169.76,2.1795]
[1717727221893,45.0,169.79,169.77,6.66]
[1717727222272,4.3573,169.83,169.78,6.66]
[1717727222588,4.3573,169.83,169.76,6.66]
[1717727222589,2.1789,169.81,169.8,6.66]
[1717727230299,47.1788,169.82,169.8,6.66]
[1717727230496,47.1788,169.82,169.81,6.66]
[1717727233504,4.3564,169.87,169.81,6.66]
[1717727233678,2.1781,169.87,169.86,6.66]
[1717727235285,2.178,169.88,169.86,6.66]
[1717727235489,2.178,169.88,169.87,6.66]
[1717727237506,38.1503,169.95,169.87,6.66]
[1717727237712,22.8063,169.95,169.93,6.66]
[1717727238009,18.3849,169.95,169.93,6.66]
[1717727238506,16.2078,169.95,169.94,6.66]
[1717727238892,18.3849,169.95,169.94,6.66]
[1717727239389,2.1771,169.95,169.94,6.66]
[1717727242002,2.1771,169.95,169.93,6.66]
[1717727242507,2.1772,169.94,169.93,6.66]
[1717727243004,2.1771,169.95,169.93,6.66]
[1717727243405,47.177,169.96,169.93,6.66]
[1717727243794,2.177,169.96,169.94,6.66]
[1717727244401,2.1771,169.95,169.93,6.66]
[1717727247985,2.177,169.96,169.94,6.66]
[1717727250694,2.1771,169.95,169.94,6.66]
[1717727252504,2.177,169.96,169.94,6.66]
[1717727252691,2.1771,169.95,169.94,6.66]
[1717727271309,45.0,169.97,169.94,6.66]
[1717727271534,4.3532,169.99,169.96,6.66]
[1717727271723,4.3532,169.99,169.92,6.66]
[1717727271724,2.177,169.96,169.92,28.8174]
[1717727271918,2.177,169.96,169.92,2.1774]
[1717727272138,2.177,169.96,169.95,6.66]
[1717727273040,2.1772,169.94,169.9,2.1777]
[1717727273353,47.1772,169.94,169.9,2.1777]
[1717727273535,2.1773,169.93,169.92,6.66]
[1717727273717,2.1773,169.93,169.89,2.1778]
[1717727274038,2.1775,169.92,169.88,2.1779]
[1717727274236,2.1775,169.92,169.91,6.66]
[1717727274427,2.1775,169.92,169.9,6.66]
[1717727274737,2.1775,169.92,169.88,2.1779]
[1717727274935,2.1775,169.92,169.9,6.66]
[1717727276628,45.0,169.93,169.9,6.66]
[1717727276629,47.1774,169.93,169.9,6.66]
[1717727277342,2.1774,169.93,169.91,6.66]
[1717727277848,47.1773,169.94,169.92,6.66]
[1717727280864,2.1773,169.93,169.92,6.66]
[1717727286865,2.1775,169.92,169.91,6.66]
[1717727287641,49.3545,169.94,169.9,6.66]
[1717727287949,2.1776,169.91,169.9,6.66]
[1717727288155,55.8862,169.94,169.88,2.178]
[1717727288156,2.1775,169.92,169.88,2.178]
[1717727288374,2.1775,169.92,169.9,6.66]
[1717727290245,2.1774,169.93,169.9,6.66]
[1717727290862,2.1774,169.93,169.91,6.66]
[1717727291746,2.1774,169.93,169.92,6.66]
[1717727292064,2.1773,169.93,169.92,6.66]
[1717727293954,2.1773,169.93,169.91,6.66]
[1717727299262,2.1773,169.93,169.89,2.1778]
[1717727299473,2.1773,169.93,169.91,6.66]
[1717727301668,2.1774,169.92,169.88,2.1779]
[1717727301869,2.1774,169.92,169.9,6.66]
[1717727303757,2.1774,169.92,169.88,2.1779]
[1717727303960,2.1774,169.92,169.9,6.66]
[1717727305753,2.1774,169.93,169.9,6.66]
[1717727305954,2.3474,169.93,169.9,6.66]
[1717727306760,2.3474,169.93,169.89,2.1778]
[1717727307054,0.17,169.93,169.91,6.66]
[1717727307263,47.3473,169.94,169.9,2.1777]
[1717727307452,2.3473,169.94,169.9,2.1777]
[1717727307653,2.3473,169.94,169.91,6.66]
[1717727309172,2.1773,169.93,169.91,6.66]
[1717727313281,2.1774,169.92,169.91,6.66]
[1717727319791,2.1774,169.92,169.88,2.1779]
[1717727319972,2.1774,169.92,169.91,6.66]
[1717727323586,2.1774,169.92,169.88,2.1779]
[1717727323765,2.1775,169.92,169.88,2.1779]
[1717727323962,2.1775,169.92,169.9,6.66]
[1717727324571,15.2425,169.92,169.81,6.3511]
[1717727324773,15.2425,169.92,169.75,263.8372]
[1717727324774,2.1783,169.86,169.76,6.0653]
[1717727324994,49.6953,169.91,169.76,32.7053]
[1717727325196,2.178,169.88,169.84,6.66]
[1717727326676,2.178,169.88,169.82,2.1787]
[1717727326877,8.446,169.88,169.84,6.66]
[1717727327192,47.1781,169.87,169.81,2.1788]
[1717727327570,47.1781,169.87,169.83,6.66]
[1717727327905,2.1782,169.86,169.8,2.179]
[1717727328086,2.1782,169.86,169.83,6.66]
[1717727331492,47.1781,169.87,169.83,6.66]
[1717727331695,31.8809,169.95,169.86,6.66]
[1717727331897,2.1777,169.9,169.85,2.1783]
[1717727332102,2.1778,169.89,169.85,2.1783]
[1717727332889,2.1778,169.89,169.84,28.8184]
[1717727335486,2.1778,169.89,169.85,2.1783]
[1717727335813,2.1778,169.89,169.87,6.66]
[1717727336193,2.178,169.88,169.87,6.66]
[1717727336721,2.178,169.88,169.83,2.1786]
[1717727336899,2.178,169.88,169.87,6.66]
[1717727337810,2.178,169.88,169.86,6.66]
[1717727338000,2.1782,169.86,169.84,6.66]
[1717727338192,2.1783,169.86,169.83,6.66]
[1717727338390,2.1783,169.86,169.81,2.1788]
[1717727338586,2.1783,169.86,169.83,6.66]
[1717727338787,8.7106,169.91,169.76,32.7053]
[1717727338788,27.36209719,169.95,169.85,6.66]
[1717727338989,4.3547,169.93,169.88,6.66]
[1717727339484,2.1777,169.91,169.88,6.66]
[1717727339888,2.1777,169.9,169.88,6.66]
[1717727340088,2.1777,169.9,169.85,2.1783]
[1717727340310,2.1777,169.9,169.86,2.1782]
[1717727340628,2.1776,169.91,169.86,2.1782]
[1717727340795,13.1918,169.94,169.87,2.178]
[1717727340796,45.0,169.92,169.87,2.178]
[1717727341108,2.1776,169.92,169.87,2.178]
[1717727344015,2.1776,169.91,169.87,2.178]
[1717727344513,2.1776,169.91,169.86,2.1782]
[1717727345508,2.1777,169.9,169.86,2.1782]
[1717727348108,55.8869,169.93,169.86,2.1782]
[1717727348302,2.1776,169.91,169.86,2.1782]
[1717727348814,2.1777,169.9,169.86,2.1782]
[1717727349420,2.1776,169.91,169.86,2.1782]
[1717727350015,2.1776,169.91,169.87,2.1781]
[1717727350319,2.5175,169.92,169.87,2.1781]
[1717727350503,2.1776,169.91,169.87,2.1781]
[1717727351605,2.1776,169.91,169.86,2.1781]
[1717727351806,2.1777,169.9,169.86,2.1781]
[1717727352009,2.1777,169.9,169.85,2.1783]
[1717727352310,2.1777,169.9,169.87,6.66]
[1717727354494,2.178,169.88,169.78,6.4658]
[1717727354702,2.1779,169.89,169.87,6.66]
[1717727354900,2.1779,169.89,169.86,6.66]
[1717727355115,2.1778,169.9,169.86,8.8382]
[1717727355506,2.1778,169.9,169.87,6.66]
[1717727355705,2.1779,169.89,169.87,6.66]
[1717727359350,2.1779,169.89,169.86,6.66]
[1717727360330,2.1779,169.89,169.85,2.1783]
[1717727360504,2.178,169.88,169.86,6.66]
[1717727361033,2.1779,169.89,169.86,6.66]
[1717727361236,2.1778,169.89,169.86,8.8382]
[1717727362132,2.1778,169.89,169.86,6.66]
[1717727363411,2.1778,169.89,169.85,2.1783]
[1717727363724,2.1778,169.89,169.87,6.66]
[1717727365407,49.3553,169.91,169.79,20.0]
[1717727365408,2.1778,169.9,169.88,6.66]
[1717727365714,2.1778,169.9,169.86,2.1781]
[1717727365715,2.1778,169.9,169.89,6.66]
[1717727367126,2.1779,169.89,169.85,2.1783]
[1717727367332,2.1779,169.89,169.88,6.66]
[1717727367530,2.1779,169.89,169.85,2.1783]
[1717727367735,2.1779,169.89,169.87,6.66]
[1717727368619,2.178,169.88,169.84,2.1784]
[1717727368933,2.178,169.88,169.87,6.66]
[1717727370336,47.1779,169.89,169.87,6.66]
[1717727372615,2.178,169.88,169.87,6.66]
[1717727372813,2.178,169.88,169.86,6.66]
[1717727374133,47.1779,169.89,169.86,6.66]
[1717727374436,47.1779,169.89,169.87,6.66]
[1717727374740,45.0,169.88,169.87,6.66]
[1717727375813,2.1779,169.89,169.87,6.66]
[1717727376019,2.1779,169.89,169.88,6.66]
[1717727376728,2.1779,169.89,169.85,2.1783]
[1717727376927,2.1779,169.89,169.87,6.66]
[1717727379024,47.1777,169.9,169.88,6.66]
[1717727379324,47.1777,169.91,169.88,6.66]
[1717727379637,2.1777,169.9,169.89,6.66]
[1717727383438,2.1777,169.9,169.86,2.1781]
[1717727386753,2.1779,169.89,169.85,2.1783]
[1717727387137,2.1779,169.89,169.86,2.1782]
[1717727387833,2.1778,169.9,169.86,2.1782]
[1717727388756,2.1778,169.89,169.85,2.1783]
[1717727390671,2.1778,169.9,169.84,26.64]
[1717727390850,2.1776,169.91,169.87,2.178]
[1717727391159,2.1776,169.91,169.9,6.66]
[1717727398340,2.1776,169.91,169.87,2.1781]
[1717727398539,2.1776,169.91,169.9,6.66]
[1717727398735,2.1777,169.9,169.86,2.1782]
[1717727398942,2.1777,169.9,169.89,6.66]
[1717727399962,2.1778,169.89,169.86,2.1782]
[1717727400163,2.1778,169.89,169.85,2.1783]
[1717727400342,47.1778,169.9,169.88,6.66]
[1717727401065,45.0,169.89,169.88,6.66]
[1717727401655,45.0,169.89,169.86,2.1782]
[1717727401859,45.0,169.89,169.88,6.66]
[1717727402557,47.1779,169.89,169.85,2.1783]
[1717727402869,2.1779,169.89,169.87,6.66]
[1717727403167,47.1777,169.9,169.87,6.66]
[1717727403375,45.17,169.91,169.87,6.66]
[1717727403575,2.1777,169.9,169.88,6.66]
[1717727404156,2.1777,169.9,169.89,6.66]
[1717727405348,2.1777,169.9,169.85,2.1783]
[1717727405675,2.1778,169.89,169.85,2.1783]
[1717727406881,2.1778,169.9,169.85,2.1783]
[1717727407178,2.1778,169.9,169.86,2.1782]
[1717727407668,2.178,169.88,169.83,2.1785]
[1717727407847,2.178,169.88,169.85,6.66]
[1717727411767,2.178,169.88,169.86,6.66]
[1717727414373,2.178,169.88,169.85,6.66]
[1717727415557,2.178,169.88,169.83,2.1785]
[1717727415752,2.3481,169.87,169.85,6.66]
[1717727416059,47.3481,169.87,169.85,6.66]
[1717727416563,45.17,169.87,169.85,6.66]
[1717727416765,47.3481,169.87,169.85,6.66]
[1717727416972,45.0,169.87,169.86,6.66]
[1717727418054,6.1819,169.92,169.86,6.66]
[1717727418269,2.1776,169.91,169.89,6.66]
[1717727418453,8.3594,169.92,169.89,6.66]
[1717727419481,45.0,169.91,169.89,6.66]
[1717727419777,47.1776,169.91,169.89,6.66]
[1717727420280,2.1777,169.9,169.86,2.1782]
[1717727420480,2.178,169.88,169.86,6.66]
[1717727420784,2.1781,169.87,169.85,6.66]
[1717727421365,2.178,169.88,169.85,6.66]
[1717727421571,2.178,169.88,169.83,2.1786]
[1717727421883,2.178,169.88,169.85,6.66]
[1717727422462,2.1781,169.87,169.83,2.1786]
[1717727422786,2.1781,169.87,169.86,6.66]
[1717727422957,2.178,169.88,169.86,6.66]
[1717727423362,2.1781,169.87,169.83,2.1786]
[1717727423658,45.17,169.89,169.76,26.64]
[1717727423659,0.17,169.86,169.76,26.64]
[1717727423961,4.3573,169.83,169.74,6.4322]
[1717727424177,2.179,169.8,169.78,6.66]
[1717727424367,47.1789,169.81,169.79,6.66]
[1717727424557,2.179,169.8,169.79,6.66]
[1717727424765,53.4411,169.81,169.79,6.66]
[1717727424977,53.4411,169.81,169.76,2.1794]
[1717727424978,2.179,169.8,169.78,6.66]
[1717727426886,53.4411,169.81,169.78,6.66]
[1717727427054,2.179,169.8,169.78,6.66]
[1717727427657,2.179,169.8,169.76,2.1794]
[1717727428161,2.179,169.8,169.77,6.66]